bitfinex/quotes_SOLUSD_20250717
["timestamp","ask_amount","ask_price","bid_price","bid_amount"]
[1752713545914,5.73789304,174.28,174.27,5.99117362]
[1752713546388,5.73789304,174.28,174.27,0.66]
[1752713546590,5.73789304,174.28,174.26,29.54]
[1752713547188,5.73789304,174.28,174.26,34.87117362]
[1752713547600,6.42789304,174.28,174.27,29.48]
[1752713548106,5.73789304,174.28,174.27,29.48]
[1752713548409,6.42789304,174.28,174.27,29.48]
[1752713548616,26.10379927,174.28,174.21,16.78468397]
[1752713548830,20.08262565,174.28,174.25,26.0]
[1752713548993,0.69,174.27,174.23,29.48]
[1752713549319,5.33117362,174.24,174.23,29.48]
[1752713549511,6.02117362,174.24,174.19,148.3]
[1752713549817,5.74085768,174.19,174.16,0.03]
[1752713550025,5.33117362,174.17,174.16,0.03]
[1752713550404,6.02117362,174.17,174.16,0.03]
[1752713550599,6.02117362,174.17,174.11,148.3]
[1752713550799,0.69,174.16,174.12,29.48]
[1752713551123,7.91191231,174.14,174.12,29.48]
[1752713551323,8.60191231,174.14,174.12,29.48]
[1752713551750,5.74283581,174.13,174.12,29.48]
[1752713552518,5.74283581,174.13,174.1,16.78468397]
[1752713552722,5.74283581,174.13,174.11,29.48]
[1752713553026,5.74283581,174.13,174.11,55.48]
[1752713553196,8.60191231,174.12,174.1,29.5]
[1752713553402,28.01183765,174.13,174.12,26.0]
[1752713553800,28.70428842,174.19,174.12,26.0]
[1752713553801,5.74250602,174.14,174.12,26.0]
[1752713554021,5.74250602,174.14,174.12,26.66]
[1752713554199,5.74250602,174.14,174.12,56.18]
[1752713555506,13.65441833,174.14,174.12,55.52]
[1752713556028,5.74250602,174.14,174.12,56.18]
[1752713556239,5.74250602,174.14,174.13,0.66]
[1752713556825,5.74250602,174.14,174.12,55.52]
[1752713557140,5.74250602,174.14,174.12,56.18]
[1752713557718,5.74250602,174.14,174.13,0.66]
[1752713557935,5.74217628,174.15,174.13,0.66]
[1752713558133,5.74217628,174.15,174.14,30.2]
[1752713558640,5.7415169,174.17,174.16,26.0]
[1752713558818,5.7415169,174.17,174.16,55.54]
[1752713559313,5.7415169,174.17,174.16,56.2]
[1752713560246,20.09336557,174.19,174.16,56.2]
[1752713561037,5.74085768,174.19,174.18,7.91191231]
[1752713561222,5.74085768,174.19,174.18,26.0]
[1752713561831,14.34276999,174.19,174.18,26.0]
[1752713562043,14.34276999,174.19,174.11,0.66]
[1752713562223,0.69,174.18,174.12,29.56]
[1752713562418,0.69,174.18,174.13,26.0]
[1752713562620,7.91191231,174.16,174.13,26.0]
[1752713562821,7.91191231,174.14,174.13,26.0]
[1752713563033,7.91191231,174.14,174.12,29.56]
[1752713563355,0.69,174.17,174.12,30.22]
[1752713563517,7.91191231,174.15,174.14,26.0]
[1752713564145,13.65408859,174.15,174.14,26.0]
[1752713564345,5.74217628,174.15,174.14,26.0]
[1752713565633,5.74217628,174.15,174.14,26.66]
[1752713566253,5.74184657,174.16,174.15,26.0]
[1752713568159,5.74184657,174.16,174.14,29.72]
[1752713568457,5.74184657,174.16,174.15,26.0]
[1752713569354,13.65375888,174.16,174.14,55.72]
[1752713569530,5.74184657,174.16,174.14,56.38]
[1752713571256,5.74184657,174.16,174.15,5.99886465]
[1752713571468,5.74184657,174.16,174.15,17.44468397]
[1752713571624,5.74118727,174.18,174.16,16.78468397]
[1752713571826,5.74118727,174.18,174.17,35.69886465]
[1752713573156,5.74019861,174.21,174.2,26.0]
[1752713573538,5.74019861,174.21,174.19,29.7]
[1752713573740,5.74019861,174.21,174.19,30.36]
[1752713574559,5.74019861,174.21,174.19,35.71886465]
[1752713574728,5.74019861,174.21,174.2,0.68]
[1752713575165,5.73953968,174.23,174.22,26.0]
[1752713576754,5.73953968,174.23,174.21,35.03886465]
[1752713576949,5.73953968,174.23,174.21,35.71886465]
[1752713577334,5.73921028,174.24,174.23,26.0]
[1752713578469,5.73921028,174.24,174.23,61.71886465]
[1752713578674,5.73921028,174.24,174.23,78.50354862]
[1752713579261,5.73822229,174.27,174.23,73.16468397]
[1752713579465,5.73822229,174.27,174.23,78.50354862]
[1752713579779,20.80377803,174.27,174.23,78.50354862]
[1752713579975,0.72,174.26,174.24,26.0]
[1752713580182,5.33886465,174.25,174.19,17.46468397]
[1752713580483,5.33886465,174.21,174.19,29.7]
[1752713580778,6.05886465,174.2,174.18,29.7]
[1752713580990,6.05886465,174.19,174.13,6.01886465]
[1752713581280,5.74250602,174.14,174.12,0.03]
[1752713581446,5.74250602,174.14,174.12,29.77]
[1752713582179,5.74250602,174.14,174.12,30.45]
[1752713582348,5.74250602,174.14,174.12,0.71]
[1752713582665,5.74250602,174.14,174.13,6.01886465]
[1752713582867,5.74250602,174.14,174.13,61.75886465]
[1752713583174,5.74250602,174.14,174.13,56.42]
[1752713583382,14.3553273,174.16,174.13,61.75886465]
[1752713583554,15.0753273,174.16,174.13,55.74]
[1752713583865,14.3553273,174.16,174.13,56.42]
[1752713584170,14.3553273,174.16,174.13,61.07886465]
[1752713584375,14.3553273,174.16,174.14,0.68]
[1752713584577,14.3553273,174.16,174.15,29.76]
[1752713585470,14.3553273,174.16,174.14,30.44]
[1752713585982,5.74118727,174.18,174.17,26.0]
[1752713586167,11.08005192,174.18,174.17,26.0]
[1752713586476,11.80005192,174.18,174.17,26.0]
[1752713586785,25.43302011,174.18,174.14,56.44]
[1752713586950,25.43302011,174.18,174.15,0.68]
[1752713587354,5.33886465,174.17,174.14,55.76]
[1752713587570,5.33886465,174.17,174.14,29.76]
[1752713588071,20.81415546,174.18,174.14,29.76]
[1752713588276,5.33886465,174.17,174.14,30.44]
[1752713588587,5.74184657,174.16,174.15,26.0]
[1752713588881,5.74184657,174.16,174.15,0.68]
[1752713589373,5.74184657,174.16,174.14,29.76]
[1752713590180,11.08071122,174.16,174.15,26.0]
[1752713590551,11.80071122,174.16,174.15,26.0]
[1752713590956,26.15532766,174.16,174.12,0.03]
[1752713591161,5.33886465,174.13,174.12,0.03]
[1752713592263,5.33886465,174.14,174.13,26.0]
[1752713592463,11.80137067,174.14,174.13,26.0]
[1752713592977,11.80137067,174.14,174.12,1e-08]
[1752713593182,6.05886465,174.13,174.12,1e-08]
[1752713593591,0.72,174.13,174.12,1e-08]
[1752713593885,6.05886465,174.13,174.12,1e-08]
[1752713595172,11.80170046,174.13,174.12,1e-08]
[1752713596377,11.80170046,174.13,174.11,1e-08]
[1752713596576,6.05886465,174.12,174.11,1e-08]
[1752713597323,11.80203028,174.12,174.11,1e-08]
[1752713600174,54.87577252,174.12,174.07,30.06]
[1752713600390,5.33886465,174.09,174.07,30.06]
[1752713600691,5.33886465,174.08,174.05,0.03]
[1752713600891,0.72,174.08,174.05,0.03]
[1752713601094,5.33886465,174.07,174.05,0.03]
[1752713601295,0.72,174.08,174.05,0.03]
[1752713601491,5.33886465,174.07,174.05,0.03]
[1752713601691,5.74514535,174.06,174.05,0.03]
[1752713601893,11.80401,174.06,174.05,1e-08]
[1752713602270,6.46514535,174.06,174.05,1e-08]
[1752713602476,5.74514535,174.06,174.05,1e-08]
[1752713602784,11.08401,174.06,174.05,1e-08]
[1752713602991,5.74514535,174.06,174.05,26.68000001]
[1752713603573,11.08401,174.06,174.05,26.00000001]
[1752713604702,11.75401,174.06,174.05,1e-08]
[1752713608308,11.08401,174.06,174.05,1e-08]
[1752713608802,11.75401,174.06,174.05,1e-08]
[1752713609308,11.08401,174.06,174.05,1e-08]
[1752713610406,5.74514535,174.06,174.05,1e-08]
[1752713610578,25.44419466,174.09,174.05,26.72000001]
[1752713610783,20.10533001,174.09,174.06,6.05886465]
[1752713611088,20.10533001,174.09,174.07,26.72]
[1752713611608,5.33886465,174.08,174.07,26.0]
[1752713611810,6.00886465,174.08,174.05,29.94000001]
[1752713611982,5.33886465,174.06,174.05,1e-08]
[1752713612340,5.33886465,174.06,174.03,1e-08]
[1752713612484,5.33886465,174.04,174.03,1e-08]
[1752713612684,11.08467021,174.04,174.03,1e-08]
[1752713615009,5.74580556,174.04,174.03,0.72000001]
[1752713615906,5.74580556,174.04,174.03,26.72000001]
[1752713617233,5.74514535,174.06,174.05,26.0]
[1752713617406,5.74514535,174.06,174.05,26.72]
[1752713617718,5.74514535,174.06,174.05,26.0]
[1752713618717,5.74514535,174.06,174.05,26.72]
[1752713619514,19.70164588,174.07,174.05,26.72]
[1752713620414,19.70164588,174.07,174.05,26.0]
[1752713620598,5.33886465,174.06,174.03,30.64000001]
[1752713620792,5.33886465,174.05,174.03,30.64000001]
[1752713621318,5.74580556,174.04,174.03,30.64000001]
[1752713621487,5.74580556,174.04,174.03,29.92000001]
[1752713622521,5.74580556,174.04,174.03,55.92000001]
[1752713622817,5.74580556,174.04,174.03,56.64000001]
[1752713623614,5.74547543,174.05,174.03,56.64000001]
[1752713623989,5.74547543,174.05,174.04,0.72]
[1752713624192,5.74547543,174.05,174.03,55.92000001]
[1752713625317,5.74547543,174.05,174.03,56.64000001]
[1752713625828,11.08401,174.06,174.03,56.64000001]
[1752713626207,5.33886465,174.04,174.03,55.92000001]
[1752713628023,11.08467021,174.04,174.03,26.00000001]
[1752713628223,11.08467021,174.04,174.02,1.32752504]
[1752713628224,11.75467021,174.04,174.02,1.32752504]
[1752713628409,5.33886465,174.03,174.02,1.32752504]
[1752713628915,6.41580556,174.04,174.02,1.32752504]
[1752713629220,5.33886465,174.03,174.02,1.32752504]
[1752713629411,11.75467021,174.04,174.02,1.32752504]
[1752713629720,5.33886465,174.03,174.02,1.32752504]
[1752713630118,11.08500037,174.03,174.02,1.32752504]
[1752713630319,20.78147502,174.03,174.0,29.92]
[1752713630528,5.33886465,174.01,173.99,26.0]
[1752713630719,5.33886465,174.0,173.99,26.0]
[1752713630918,5.33886465,174.0,173.98,0.2]
[1752713631127,5.33886465,173.99,173.98,0.2]
[1752713631309,6.00886465,173.99,173.97,1e-08]
[1752713631621,5.33886465,173.98,173.97,1e-08]
[1752713632212,11.08665175,173.98,173.97,1e-08]
[1752713632615,11.75665175,173.98,173.97,1e-08]
[1752713633210,26.1261195,173.98,173.94,0.92]
[1752713633516,5.33886465,173.95,173.94,1e-08]
[1752713634406,11.08764303,173.95,173.94,1e-08]
[1752713635110,5.74877838,173.95,173.94,1e-08]
[1752713635309,11.08764303,173.95,173.94,1e-08]
[1752713635933,11.08764303,173.95,173.94,26.00000001]
[1752713636532,5.74877838,173.95,173.94,56.64000001]
[1752713636713,5.74877838,173.95,173.94,73.42468398]
[1752713636913,5.74877838,173.95,173.94,78.76354863]
[1752713637413,5.74877838,173.95,173.94,73.42468398]
[1752713637724,5.74877838,173.95,173.94,26.00000001]
[1752713638040,5.74877838,173.95,173.94,26.72000001]
[1752713638531,11.08731256,173.96,173.94,0.72000001]
[1752713638731,5.33886465,173.95,173.94,1e-08]
[1752713639404,11.08731256,173.96,173.94,1e-08]
[1752713639608,5.74877838,173.95,173.94,1e-08]
[1752713640114,5.74877838,173.95,173.94,0.72000001]
[1752713640727,5.74877838,173.95,173.94,26.72000001]
[1752713640933,5.74877838,173.95,173.94,26.00000001]
[1752713641250,11.76764303,173.95,173.92,30.44]
[1752713641416,5.33886465,173.94,173.92,31.16]
[1752713641617,5.74943942,173.93,173.92,31.16]
[1752713641817,5.74943942,173.93,173.92,52.56354862]
[1752713642111,5.74877838,173.95,173.93,16.78468397]
[1752713642437,5.74877838,173.95,173.94,53.30354862]
[1752713643422,20.11725485,173.98,173.97,26.0]
[1752713645428,25.4561195,173.98,173.91,148.33]
[1752713645628,5.33886465,173.95,173.92,30.44]
[1752713645828,20.11725485,173.98,173.94,5.33886465]
[1752713646031,20.11725485,173.98,173.97,5.33886465]
[1752713646213,20.11725485,173.98,173.97,31.46]
[1752713646420,20.11725485,173.98,173.97,30.74]
[1752713646847,26.1361195,173.98,173.97,30.74]
[1752713647053,26.1361195,173.98,173.95,30.74]
[1752713647211,26.1361195,173.98,173.94,148.3]
[1752713647212,5.33886465,173.96,173.94,148.3]
[1752713647413,5.33886465,173.95,173.94,148.3]
[1752713647720,26.13958899,173.95,173.91,0.03]
[1752713648031,5.33886465,173.92,173.87,0.2]
[1752713648346,5.33886465,173.89,173.88,30.72]
[1752713648951,5.33886465,173.89,173.87,0.2]
[1752713649130,5.33886465,173.88,173.87,0.2]
[1752713649728,5.75043128,173.9,173.87,0.2]
[1752713650043,5.75043128,173.9,173.87,0.92]
[1752713650240,11.08929593,173.9,173.87,0.92]
[1752713650428,5.33886465,173.89,173.87,0.92]
[1752713650624,5.33886465,173.88,173.87,0.2]
[1752713650850,6.43043128,173.9,173.87,0.2]
[1752713651055,7.93477579,173.89,173.87,0.2]
[1752713651553,5.75043128,173.9,173.88,0.72]
[1752713652936,5.75043128,173.9,173.89,43.50468397]
[1752713653138,5.74943942,173.93,173.92,26.0]
[1752713653338,5.74943942,173.93,173.92,56.7]
[1752713653544,5.74943942,173.93,173.92,57.42]
[1752713653944,22.30794434,173.94,173.92,56.7]
[1752713654147,8.61477579,173.93,173.92,26.0]
[1752713654541,7.93477579,173.93,173.92,26.0]
[1752713654725,22.30794434,173.94,173.92,26.0]
[1752713655038,22.30794434,173.94,173.92,26.03]
[1752713655039,22.98794434,173.94,173.92,26.03]
[1752713655242,7.93477579,173.93,173.92,26.03]
[1752713656360,14.36421521,173.93,173.9,30.7]
[1752713656560,0.06,173.95,173.92,24.71945976]
[1752713656757,5.80888614,173.95,173.94,24.71945976]
[1752713657061,5.80888614,173.95,173.94,25.43945976]
[1752713657244,5.80888614,173.95,173.94,173.73945976]
[1752713658158,5.80888614,173.95,173.94,148.3]
[1752713658332,0.06,173.95,173.94,148.3]
[1752713660258,0.06,173.95,173.94,156.23477579]
[1752713660456,0.06,173.95,173.94,173.73945976]
[1752713661844,0.06,173.95,173.94,165.80468397]
[1752713662041,0.06,173.95,173.94,148.3]
[1752713662042,7.99477579,173.95,173.94,148.3]
[1752713662248,8.67477579,173.95,173.94,148.3]
[1752713662448,8.67477579,173.95,173.94,174.3]
[1752713662660,14.42355417,173.95,173.94,26.0]
[1752713663046,6.48877838,173.95,173.94,26.0]
[1752713663645,6.48877838,173.95,173.94,0.2151084]
[1752713663851,28.79550013,173.95,173.91,30.64]
[1752713664048,7.93477579,173.92,173.87,0.2]
[1752713664246,0.72,173.94,173.87,0.2]
[1752713664247,7.93477579,173.88,173.87,0.2]
[1752713664443,8.65477579,173.88,173.87,0.2]
[1752713664644,14.40586849,173.88,173.87,0.2]
[1752713665059,14.40586849,173.88,173.87,1e-08]
[1752713665761,6.4710927,173.88,173.87,1e-08]
[1752713665939,5.7510927,173.88,173.87,26.72000001]
[1752713666134,13.68586849,173.88,173.87,26.00000001]
[1752713666660,5.7510927,173.88,173.87,26.00000001]
[1752713668434,14.40586849,173.88,173.87,1e-08]
[1752713670642,28.78360025,173.88,173.86,26.0]
[1752713670966,28.78360025,173.88,173.73,17.253774]
[1752713670967,8.65477579,173.87,173.79,148.3]
[1752713671141,7.93477579,173.81,173.78,0.72]
[1752713671341,7.93477579,173.82,173.77,38.73477579]
[1752713671566,8.65477579,173.83,173.79,0.72]
[1752713671868,48.88428799,173.88,173.77,30.8]
[1752713671869,7.93477579,173.8,173.77,30.8]
[1752713672245,5.754071,173.79,173.77,30.8]
[1752713672443,13.68884679,173.79,173.77,30.8]
[1752713672760,28.7940243,173.79,173.75,30.78]
[1752713672936,7.93477579,173.77,173.75,30.78]
[1752713673141,8.65477579,173.78,173.77,26.0]
[1752713673351,8.65477579,173.78,173.74,0.72]
[1752713673565,20.13924851,173.79,173.73,30.78]
[1752713673566,7.93477579,173.77,173.73,30.78]
[1752713673750,0.72,173.78,173.74,7.93477579]
[1752713673941,20.13924851,173.79,173.75,7.93477579]
[1752713674448,28.0740243,173.79,173.74,7.93477579]
[1752713674875,20.13924851,173.79,173.75,7.93477579]
[1752713675243,8.65477579,173.78,173.74,26.0]
[1752713675443,0.72,173.77,173.74,26.0]
[1752713675652,20.85924851,173.79,173.75,7.93477579]
[1752713675969,28.7940243,173.79,173.75,7.93477579]
[1752713676174,20.13924851,173.79,173.75,8.65477579]
[1752713676376,20.13924851,173.79,173.76,34.65477579]
[1752713677157,20.13924851,173.79,173.78,7.93477579]
[1752713677382,20.13924851,173.79,173.77,0.06]
[1752713677576,20.16924851,173.79,173.77,0.06]
[1752713678084,0.72,173.78,173.77,0.06]
[1752713678266,13.25829748,173.78,173.76,26.0]
[1752713678468,7.93477579,173.77,173.73,30.78]
[1752713678774,7.93477579,173.74,173.7,31.27885976]
[1752713678962,7.93477579,173.74,173.7,38.0594]
[1752713679162,7.93477579,173.74,173.73,26.0]
[1752713679358,7.93477579,173.75,173.73,26.0]
[1752713679673,7.93477579,173.76,173.73,26.0]
[1752713679867,7.93477579,173.76,173.73,26.72]
[1752713680177,7.93477579,173.76,173.73,26.0]
[1752713680580,4.60431654,173.75,173.73,26.0]
[1752713681157,5.32431654,173.75,173.73,26.0]
[1752713681360,13.25909233,173.75,173.73,26.0]
[1752713681773,0.72,173.74,173.73,26.0]
[1752713681969,4.60431654,173.75,173.73,26.0]
[1752713682669,4.60405156,173.76,173.73,26.0]
[1752713682872,4.60352169,173.78,173.75,7.93477579]
[1752713683074,0.03,173.79,173.78,26.0]
[1752713683264,0.03,173.79,173.78,34.65477579]
[1752713683664,4.63327676,173.79,173.78,34.65477579]
[1752713683868,0.03,173.79,173.78,65.39477579]
[1752713684363,0.03,173.79,173.78,82.17945976]
[1752713684789,0.03,173.79,173.78,230.47945976]
[1752713688892,0.03,173.79,173.78,229.75945976]
[1752713689494,0.03,173.79,173.78,64.67477579]
[1752713690005,0.03,173.79,173.78,82.17945976]
[1752713690593,0.03,173.79,173.78,112.17945976]
[1752713690773,0.03,173.79,173.78,260.47945976]
[1752713690977,0.03,173.79,173.78,229.73945976]
[1752713691194,0.03,173.79,173.78,260.43945976]
[1752713691900,0.03,173.79,173.78,252.50468397]
[1752713692189,0.03,173.79,173.78,260.43945976]
[1752713694967,0.03,173.79,173.78,309.42223555]
[1752713695167,0.03,173.79,173.78,301.44745976]
[1752713695583,0.03,173.79,173.78,309.38223555]
[1752713695980,0.03,173.79,173.78,308.09856681]
[1752713696784,0.03,173.86,173.83,42.78468397]
[1752713696974,0.03,173.86,173.85,7.93477579]
[1752713697777,0.03,173.86,173.85,37.93477579]
[1752713698581,0.03,173.86,173.85,72.78468397]
[1752713698787,4.60060958,173.89,173.86,29.97]
[1752713699109,0.66,173.88,173.86,37.90477579]
[1752713700272,0.66,173.87,173.86,29.97]
[1752713700607,5.26060958,173.89,173.86,29.97]
[1752713700915,0.66,173.88,173.86,29.97]
[1752713701074,0.66,173.87,173.86,29.97]
[1752713701474,8.59477579,173.87,173.86,29.97]
[1752713702092,8.59477579,173.87,173.8,148.3]
[1752713702291,7.93477579,173.84,173.8,178.98]
[1752713702491,8.59477579,173.83,173.8,148.3]
[1752713702694,5.26246231,173.82,173.8,148.3]
[1752713702899,0.66,173.81,173.8,26.0]
[1752713703195,8.59477579,173.81,173.78,30.68]
[1752713703396,16.1086181,173.82,173.79,26.0]
[1752713703397,24.04339389,173.82,173.79,26.0]
[1752713703587,0.66,173.81,173.79,26.0]
[1752713703901,16.1086181,173.82,173.79,33.93477579]
[1752713704073,16.7686181,173.82,173.8,30.0]
[1752713705277,4.60246231,173.82,173.8,37.93477579]
[1752713705500,4.60246231,173.82,173.81,33.93477579]
[1752713705804,4.60246231,173.82,173.81,63.93477579]
[1752713706001,4.60246231,173.82,173.81,56.0]
[1752713706188,13.1972381,173.82,173.81,56.0]
[1752713706390,13.1972381,173.82,173.81,30.0]
[1752713707282,13.1972381,173.82,173.81,56.0]
[1752713709201,4.60246231,173.82,173.81,56.0]
[1752713709402,0.66,173.84,173.81,56.0]
[1752713709403,4.60219754,173.83,173.81,56.0]
[1752713709600,5.26219754,173.83,173.81,56.0]
[1752713710199,0.66,173.82,173.81,56.0]
[1752713710718,8.59477579,173.82,173.81,56.0]
[1752713711708,5.26246231,173.82,173.81,56.0]
[1752713712508,13.1972381,173.82,173.81,56.0]
[1752713712994,24.70339389,173.82,173.8,26.0]
[1752713713199,8.59477579,173.81,173.8,26.0]
[1752713713397,8.59477579,173.81,173.79,26.0]
[1752713713587,8.59477579,173.8,173.79,26.0]
[1752713713795,7.93477579,173.81,173.79,26.0]
[1752713713997,20.10093158,173.82,173.79,26.0]
[1752713714191,8.59477579,173.81,173.79,26.0]
[1752713714400,0.66,173.8,173.79,26.0]
[1752713714903,20.10093158,173.82,173.79,56.0]
[1752713715094,12.16615579,173.82,173.79,56.0]
[1752713715292,0.66,173.81,173.79,56.0]
[1752713717112,0.66,173.8,173.79,56.0]
[1752713717304,0.66,173.81,173.79,56.0]
[1752713718205,0.66,173.8,173.79,56.0]
[1752713718922,7.93477579,173.81,173.79,56.0]
[1752713719283,19.44093158,173.82,173.79,56.0]
[1752713719487,8.59477579,173.81,173.79,56.0]
[1752713719687,19.44093158,173.82,173.79,56.0]
[1752713719917,20.10093158,173.82,173.79,56.0]
[1752713720112,0.66,173.85,173.81,7.93477579]
[1752713720429,10.72642264,173.85,173.82,7.93477579]
[1752713720621,10.06642264,173.85,173.82,7.93477579]
[1752713721824,14.09288223,173.85,173.82,33.93477579]
[1752713721996,14.09288223,173.85,173.82,26.0]
[1752713722193,14.09288223,173.85,173.82,63.93477579]
[1752713723005,10.06642264,173.85,173.84,26.0]
[1752713723205,10.06642264,173.85,173.84,56.0]
[1752713723503,10.72642264,173.85,173.84,56.0]
[1752713724100,18.66119843,173.85,173.84,56.0]
[1752713724295,18.66119843,173.85,173.84,30.0]
[1752713724502,18.66119843,173.85,173.81,26.0]
[1752713724815,18.66119843,173.85,173.8,148.3]
[1752713724816,7.93477579,173.82,173.8,148.3]
[1752713725002,8.60477579,173.82,173.81,30.0]
[1752713725203,0.67,173.82,173.81,56.0]
[1752713725450,0.67,173.84,173.81,26.0]
[1752713725747,10.06642264,173.85,173.82,8.63477579]
[1752713725948,4.02669121,173.84,173.83,26.7]
[1752713726145,4.02669121,173.84,173.83,8.63477579]
[1752713726503,4.02669121,173.84,173.83,38.63477579]
[1752713726939,4.02599643,173.87,173.83,38.63477579]
[1752713727130,4.02599643,173.87,173.84,7.93477579]
[1752713727519,4.02599643,173.87,173.84,30.0]
[1752713728022,4.69599643,173.87,173.84,30.0]
[1752713728505,4.02645959,173.85,173.84,30.0]
[1752713729713,10.06475157,173.88,173.84,38.63477579]
[1752713730028,4.02599643,173.87,173.86,7.93477579]
[1752713730224,4.02599643,173.87,173.86,38.63477579]
[1752713730417,4.02599643,173.87,173.86,37.93477579]
[1752713731226,4.69599643,173.87,173.86,30.0]
[1752713733010,12.63077222,173.87,173.86,30.0]
[1752713733211,4.02599643,173.87,173.86,30.0]
[1752713734028,4.69599643,173.87,173.86,30.0]
[1752713734225,12.63077222,173.87,173.86,30.0]
[1752713734527,12.63077222,173.87,173.86,16.74088601]
[1752713734726,22.6957633,173.87,173.8,179.0]
[1752713735033,5.36013964,173.82,173.79,148.36]
[1752713735218,4.69738622,173.81,173.79,0.06]
[1752713735420,10.05752586,173.81,173.79,0.06]
[1752713735717,5.36013964,173.8,173.79,0.06]
[1752713736131,5.36013964,173.8,173.79,26.06]
[1752713736332,6.03013964,173.8,173.79,26.06]
[1752713736712,4.02738622,173.81,173.79,26.06]
[1752713736931,4.02738622,173.81,173.79,26.76]
[1752713737240,4.02715452,173.82,173.79,26.76]
[1752713738239,12.63762404,173.82,173.79,26.06]
[1752713739134,4.69715452,173.82,173.79,26.06]
[1752713739340,7.94046952,173.82,173.79,26.06]
[1752713740032,8.61046952,173.82,173.79,26.06]
[1752713740533,8.61046952,173.82,173.8,26.0]
[1752713740743,8.61046952,173.81,173.8,26.0]
[1752713742444,7.94046952,173.82,173.8,26.0]
[1752713742631,8.61046952,173.81,173.8,26.0]
[1752713743336,8.61046952,173.81,173.79,0.06]
[1752713743551,10.06786255,173.83,173.77,0.06]
[1752713743552,8.61046952,173.8,173.77,0.06]
[1752713743844,7.94046952,173.78,173.77,0.06]
[1752713744630,11.39311079,173.78,173.77,0.06]
[1752713744832,12.06311079,173.78,173.77,0.06]
[1752713745148,12.06311079,173.78,173.76,26.0]
[1752713745443,8.61046952,173.77,173.76,26.0]
[1752713745641,8.61046952,173.77,173.75,26.0]
[1752713745842,11.39311079,173.78,173.77,26.0]
[1752713746344,12.08424444,173.78,173.76,7.94046952]
[1752713746639,8.63160317,173.78,173.76,7.94046952]
[1752713746941,3.45224395,173.8,173.74,30.82]
[1752713746942,3.45224395,173.8,173.77,26.7]
[1752713747834,8.61046952,173.79,173.77,26.0]
[1752713748025,3.45224395,173.8,173.77,26.0]
[1752713748026,8.61046952,173.78,173.77,26.0]
[1752713748342,7.94046952,173.78,173.77,26.0]
[1752713748531,8.61046952,173.78,173.77,26.0]
[1752713748932,12.06311079,173.78,173.77,26.0]
[1752713749136,12.06311079,173.78,173.74,148.3]
[1752713749137,20.69471396,173.78,173.74,148.3]
[1752713749330,7.94046952,173.76,173.74,148.3]
[1752713749529,8.61046952,173.76,173.74,148.3]
[1752713750950,4.12323741,173.75,173.74,148.3]
[1752713751122,3.45323741,173.75,173.74,148.3]
[1752713751948,3.45303742,173.77,173.76,26.0]
[1752713752439,11.39350694,173.77,173.74,148.3]
[1752713752641,7.94046952,173.76,173.74,148.3]
[1752713752849,3.45323741,173.75,173.74,148.3]
[1752713753357,4.12323741,173.75,173.74,148.3]
[1752713753655,4.12323741,173.75,173.71,8.78540835]
[1752713753951,8.65046952,173.74,173.71,0.84493883]
[1752713754128,7.94046952,173.74,173.71,0.84493883]
[1752713754334,7.94046952,173.72,173.71,26.84493883]
[1752713754529,0.71,173.72,173.71,26.84493883]
[1752713754737,0.71,173.74,173.73,26.0]
[1752713754928,3.45363495,173.73,173.71,0.84493883]
[1752713755133,3.45363495,173.73,173.72,26.7]
[1752713755756,3.45363495,173.73,173.72,34.64046952]
[1752713756153,3.45363495,173.73,173.72,26.7]
[1752713756552,3.45363495,173.73,173.72,26.0]
[1752713756953,3.45323741,173.75,173.72,26.0]
[1752713757661,3.45323741,173.75,173.73,0.7]
[1752713757863,3.45323741,173.75,173.72,26.7]
[1752713758167,3.45323741,173.75,173.72,26.0]